fUST/lending_fUST_20240807
["ID","MTS","AMOUNT","RATE_DAILY","PERIOD"]
[334367902,1722996644724,-500.0,0.00032876,14]
[334367903,1722996644735,-550.55,0.00032876,14]
[334367904,1722996644745,-151.0,0.00032876,7]
[334367905,1722996644755,-500.0,0.00032876,14]
[334367906,1722996644764,-500.0,0.00032876,14]
[334367907,1722996644774,-500.0,0.00032876,14]
[334367908,1722996644784,-500.0,0.00032876,14]
[334367909,1722996644793,-500.0,0.00032876,14]
[334367910,1722996644802,-668.75,0.00032876,14]
[334367911,1722996645023,-600.03,0.00032876,14]
[334367912,1722996645034,-500.0,0.00032876,14]
[334367913,1722996645045,-523.21,0.00032876,14]
[334367914,1722996645055,-1251.4,0.00032876,14]
[334367915,1722996645065,-500.0,0.00032876,14]
[334367916,1722996645075,-530.42,0.00032876,14]
[334367917,1722996645085,-500.0,0.00032876,14]
[334367918,1722996645100,-284.138515,0.00032876,7]
[334367919,1722996645110,-623.79,0.00032876,14]
[334367920,1722996645120,-588.05,0.00032876,14]
[334367921,1722996645130,-500.0,0.00032876,14]
[334367922,1722996645139,-200.1595445,0.00032876,14]
[334367923,1722996645149,-500.0,0.00032876,14]
[334367924,1722996645159,-500.0,0.00032876,14]
[334367925,1722996645169,-558.54,0.00032876,14]
[334367926,1722996645179,-444.26446791,0.00032876,14]
[334367927,1722996645188,-500.0,0.00032876,14]
[334367928,1722996645206,-501.43000007,0.00032876,14]
[334367929,1722996645217,-500.0,0.00032876,14]
[334367930,1722996645226,-697.34,0.00032876,14]
[334367931,1722996645235,-500.0,0.00032876,14]
[334367932,1722996645245,-608.83,0.00032876,14]
[334367933,1722996645256,-534.65,0.00032876,14]
[334367934,1722996645265,-500.0,0.00032876,14]
[334367935,1722996645274,-500.0,0.00032876,14]
[334367936,1722996645284,-490.04561637,0.00032876,14]
[334367937,1722996645295,-788.52,0.00032876,14]
[334367938,1722996645305,-500.0,0.00032876,14]
[334367939,1722996645315,-200.0,0.00032876,7]
[334367940,1722996645325,-500.0,0.00032876,14]
[334367941,1722996645335,-942.57,0.00032876,14]
[334367942,1722996645345,-500.0,0.00032876,14]
[334367943,1722996645355,-500.0,0.00032876,14]
[334367944,1722996645366,-1007.8,0.00032876,14]
[334367945,1722996645376,-977.42,0.00032876,14]
[334367946,1722996645388,-500.0,0.00032876,14]
[334367947,1722996645399,-774.76091774,0.00032876,5]
[334367948,1722996645409,-500.0,0.00032876,14]
[334367949,1722996645420,-500.0,0.00032876,14]
[334367950,1722996645432,-500.0,0.00032876,14]
[334367951,1722996645450,-500.0,0.00032876,14]
[334367952,1722996645460,-500.0,0.00032876,14]
[334367953,1722996645470,-500.0,0.00032876,14]
[334367954,1722996645480,-500.0,0.00032876,14]
[334367955,1722996645493,-1734.08,0.00032876,14]
[334367956,1722996645502,-500.0,0.00032876,14]
[334367957,1722996645512,-1179.9,0.00032876,14]
[334367958,1722996645521,-500.0,0.00032876,14]
[334367959,1722996645531,-500.0,0.00032876,14]
[334367960,1722996645541,-509.54,0.00032876,14]
[334367961,1722996645551,-500.74,0.00032876,14]
[334367962,1722996645562,-500.0,0.00032876,14]
[334367963,1722996645573,-212.56,0.00032876,14]
[334367964,1722996645583,-500.0,0.00032876,14]
[334367965,1722996645593,-2265.42,0.00032876,14]
[334367966,1722996645602,-500.0,0.00032876,14]
[334367967,1722996645612,-500.0,0.00032876,14]
[334367968,1722996645622,-500.0,0.00032876,14]
[334367969,1722996645632,-500.0,0.00032876,14]
[334367970,1722996645642,-557.87,0.00032876,14]
[334367971,1722996645651,-473.11048063,0.00032876,14]
[334367973,1722996645661,-500.78420234,0.00032876,14]
[334367975,1722996645671,-1793.79,0.00032876,14]
[334367976,1722996645681,-500.0,0.00032876,14]
[334367977,1722996645691,-500.0,0.00032876,14]
[334367978,1722996645708,-503.54076073,0.00032876,14]
[334367979,1722996645718,-500.0,0.00032876,14]
[334367980,1722996645727,-500.0,0.00032876,14]
[334367981,1722996645737,-500.0,0.00032876,14]
[334367982,1722996645746,-500.0,0.00032876,14]
[334367983,1722996645756,-218.32607606,0.00032876,14]
[334367984,1722996645766,-500.0,0.00032876,14]
[334367985,1722996645775,-1112.57,0.00032876,14]
[334367986,1722996645785,-500.0,0.00032876,14]
[334367987,1722996645795,-500.0,0.00032876,14]
[334367988,1722996645804,-500.0,0.00032876,14]
[334367989,1722996645815,-500.0,0.00032876,14]
[334367990,1722996645824,-500.0,0.00032876,14]
[334367991,1722996645834,-505.51,0.00032876,14]
[334367992,1722996645843,-151.895454,0.00032876,7]
[334367993,1722996645857,-500.0,0.00032876,14]
[334367994,1722996645867,-500.0,0.00032876,14]
[334367995,1722996645877,-500.0,0.00032876,14]
[334367996,1722996645886,-575.76,0.00032876,14]
[334367997,1722996645896,-777.11,0.00032876,14]
[334367998,1722996645906,-500.0,0.00032876,14]
[334367999,1722996645916,-2304.29,0.00032876,14]
[334368000,1722996645926,-444.15482638,0.00032876,14]
[334368001,1722996645936,-500.0,0.00032876,14]
[334368002,1722996645950,-576.49,0.00032876,14]
[334368003,1722996645959,-498.10409042,0.00032876,14]
[334368004,1722996645969,-505.14182312,0.00032876,14]
[334368005,1722996645979,-549.88,0.00032876,14]
[334368006,1722996645989,-500.0,0.00032876,14]
[334368007,1722996645998,-287.108228,0.00032876,7]
[334368008,1722996646008,-287.108228,0.00032876,7]
[334368009,1722996646017,-500.0,0.00032876,14]
[334368010,1722996646027,-731.4,0.00032876,14]
[334368011,1722996646038,-287.108228,0.00032876,7]
[334368012,1722996646048,-287.108228,0.00032876,7]
[334368013,1722996646058,-1213.42,0.00032876,14]
[334368014,1722996646068,-500.0,0.00032876,14]
[334368015,1722996646078,-583.08,0.00032876,14]
[334368016,1722996646088,-500.0,0.00032876,14]
[334368017,1722996646098,-1239.88,0.00032876,14]
[334368018,1722996646108,-500.0,0.00032876,14]
[334368019,1722996646118,-500.0,0.00032876,14]
[334368020,1722996646128,-500.0,0.00032876,14]
[334368021,1722996646138,-500.0,0.00032876,14]
[334368022,1722996646149,-500.0,0.00032876,14]
[334368023,1722996646158,-500.0,0.00032876,14]
[334368024,1722996646168,-1068.74,0.00032876,14]
[334368025,1722996646179,-1006.37,0.00032876,14]
[334368026,1722996646188,-1398.48,0.00032876,14]
[334368027,1722996646202,-619.6,0.00032876,14]
[334368028,1722996646212,-500.0,0.00032876,14]
[334368029,1722996646222,-500.0,0.00032876,14]
[334368030,1722996646232,-647.3,0.00032876,14]
[334368031,1722996646243,-573.06,0.00032876,14]
[334368032,1722996646253,-774.71,0.00032876,14]
[334368033,1722996646263,-2557.26,0.00032876,14]
[334368034,1722996646274,-500.0,0.00032876,14]
[334368035,1722996646284,-826.74,0.00032876,14]
[334368036,1722996646294,-500.0,0.00032876,14]
[334368037,1722996646304,-183.84840825,0.00032876,14]
[334368038,1722996646315,-890.44,0.00032876,14]
[334368039,1722996646326,-511.36,0.00032876,14]
[334368040,1722996646336,-500.0,0.00032876,14]
[334368042,1722996646346,-662.13,0.00032876,14]
[334368044,1722996646357,-500.0,0.00032876,14]
[334368046,1722996646367,-500.0,0.00032876,14]
[334368047,1722996646377,-864.67,0.00032876,14]
[334368048,1722996646388,-500.0,0.00032876,14]
[334368049,1722996646398,-500.0,0.00032876,14]
[334368050,1722996646409,-500.0,0.00032876,14]
[334368051,1722996646419,-500.0,0.00032876,14]
[334368052,1722996646429,-464.67024963,0.00032876,14]
[334368053,1722996646439,-1836.19,0.00032876,14]
[334368054,1722996646458,-993.7,0.00032876,14]
[334368055,1722996646467,-455.23540212,0.00032876,14]
[334368056,1722996646477,-1081.36,0.00032876,14]
[334368057,1722996646487,-1186.44,0.00032876,14]
[334368058,1722996646498,-500.0,0.00032876,14]
[334368059,1722996646508,-500.0,0.00032876,14]
[334368060,1722996646517,-500.0,0.00032876,14]
[334368061,1722996646528,-204.914541,0.00032876,7]
[334368062,1722996646539,-977.39,0.00032876,14]
[334368063,1722996646548,-626.92,0.00032876,14]
[334368064,1722996646558,-500.0,0.00032876,14]
[334368065,1722996646568,-405.7183097,0.00032876,14]
[334368066,1722996646580,-549.15,0.00032876,14]
[334368067,1722996646591,-500.0,0.00032876,14]
[334368068,1722996646601,-152.39234841,0.00032876,14]
[334368069,1722996646611,-500.0,0.00032876,14]
[334368070,1722996646621,-500.0,0.00032876,14]
[334368071,1722996646631,-500.0,0.00032876,14]
[334368072,1722996646641,-1630.13,0.00032876,14]
[334368073,1722996646651,-1736.11,0.00032876,14]
[334368074,1722996646661,-501.60127338,0.00032876,14]
[334368075,1722996646671,-3069.29,0.00032876,14]
[334368076,1722996646681,-151.0,0.00032876,7]
[334368077,1722996646691,-151.0,0.00032876,7]
[334368078,1722996646704,-500.0,0.00032876,14]
[334368079,1722996646714,-189.783987,0.00032876,7]
[334368080,1722996646723,-500.0,0.00032876,14]
[334368081,1722996646733,-500.0,0.00032876,14]
[334368082,1722996646742,-500.0,0.00032876,14]
[334368083,1722996646752,-500.0,0.00032876,14]
[334368084,1722996646761,-562.47,0.00032876,14]
[334368085,1722996646771,-500.0,0.00032876,14]
[334368086,1722996646781,-3497.4,0.00032876,14]
[334368087,1722996646791,-500.0,0.00032876,14]
[334368088,1722996646801,-1016.36,0.00032876,14]
[334368089,1722996646810,-500.0,0.00032876,14]
[334368090,1722996646819,-500.0,0.00032876,14]
[334368091,1722996646831,-500.0,0.00032876,14]
[334368092,1722996646842,-22.67528794,0.00032876,14]
[334368093,1722996647893,-21.9869847,0.00032876,14]
[334368094,1722996647906,-2737.3649414,0.00032876,14]
[334368095,1722996647938,48302.76014535,0.00014545,2]
[334368096,1722996648686,816.12306889,0.00014545,2]
[334368097,1722996649331,405.44394502,0.00014545,2]
[334368098,1722996649569,235.43738649,9.9e-05,2]
[334368099,1722996652428,244.86573246,0.00014545,2]
[334368100,1722996656769,1471.43944368,0.00014545,2]
[334368101,1722996656805,381.59089176,0.00014545,2]
[334368102,1722996657032,159.65848104,0.00014545,2]
[334368103,1722996657712,7023.75020235,0.00014545,2]
[334368104,1722996658267,3087.63872233,0.00014545,2]
[334368105,1722996659040,1794.84907646,0.00014545,2]
[334368106,1722996659348,16772.93723804,0.00014545,2]
[334368107,1722996659430,284.16424637,0.00014545,2]
[334368108,1722996659614,220.33449167,0.00014545,2]
[334368109,1722996660310,573.15262334,0.00014545,2]
[334368110,1722996660599,2109.55666342,0.00014545,2]
[334368111,1722996660713,2666.38619517,0.00014545,2]
[334368112,1722996660864,157.5751207,0.00014545,2]
[334368113,1722996661134,519.27715022,0.00014545,2]
[334368114,1722996661416,156.69402171,0.00014545,2]
[334368115,1722996663509,204.96885237,0.00014545,2]
[334368116,1722996663980,951.94046237,0.00015,2]
[334368117,1722996664436,154.77557542,0.00014545,2]
[334368118,1722996665387,273.37336231,9.9e-05,2]
[334368119,1722996665944,155.02002402,0.00014545,2]
[334368120,1722996666768,807.96586902,0.00014545,2]
[334368121,1722996667638,795.08511128,0.00014545,2]
[334368122,1722996668203,403.74175046,0.00014545,2]
[334368123,1722996669468,971.20900664,0.00014545,2]
[334368124,1722996671036,1610.68802731,0.00014545,2]
[334368125,1722996671272,942.68890731,0.00014545,2]
[334368126,1722996671954,258.34699432,0.00014545,2]
[334368127,1722996672896,160.17752587,0.00014545,2]
[334368128,1722996673016,600.90391779,0.00014545,2]
[334368129,1722996673799,218.64315763,0.00014545,2]
[334368130,1722996674246,196.48473354,0.00014545,2]
[334368131,1722996675228,308.75681936,0.00014545,2]
[334368132,1722996675406,155.2991435,0.00014545,2]
[334368133,1722996676016,156.74439841,0.00014545,2]
[334368134,1722996677494,174.56235819,0.00014545,2]
[334368135,1722996677530,154.77557542,0.00014545,2]
[334368136,1722996686636,346.52359711,0.00014545,2]
[334368139,1722996824865,16289.8174965,0.00014545,2]
[334368140,1722996853109,178.27301924,0.00014545,2]
[334368151,1722997046235,3000.0,0.00015426,2]
[334368152,1722997148700,172.848035,0.00014247,2]
[334368154,1722997169220,389.671888,0.00015302,2]
[334368157,1722997222680,440.32980994,0.00015938,2]
[334368160,1722997259691,666.7342584,0.00015279,2]
[334368161,1722997265097,2162.90546762,0.00015954,2]
[334368162,1722997273029,9228.134583,0.00015954,2]
[334368163,1722997287481,5222.8481496,0.00015294,2]
[334368164,1722997290890,7735.22573981,0.00015279,2]
[334368165,1722997302305,156.94756901,0.00015279,2]
[334368169,1722997304782,250.0,0.00015402,2]
[334368170,1722997304842,250.0,0.00015445,2]
[334368171,1722997304964,250.0,0.00015487,2]
[334368172,1722997305425,250.0,0.00015529,2]
[334368173,1722997305477,250.0,0.00015571,2]
[334368174,1722997305843,250.0,0.00015614,2]
[334368175,1722997306055,250.0,0.00015656,2]
[334368176,1722997306265,250.0,0.00015698,2]
[334368177,1722997306467,250.0,0.0001574,2]
[334368178,1722997306692,250.0,0.00015783,2]
[334368179,1722997306913,250.0,0.00015825,2]
[334368180,1722997307282,218.38367924,0.00015279,2]
[334368181,1722997307361,250.0,0.00015867,2]
[334368182,1722997307763,250.0,0.00015909,2]
[334368183,1722997307974,250.0,0.00015952,2]
[334368184,1722997308183,250.0,0.00015994,2]
[334368185,1722997310715,546.11995014,0.00015954,2]
[334368186,1722997314221,1763.75242219,0.00015954,2]
[334368188,1722997323386,154.91991644,0.00015954,2]
[334368191,1722997339877,24900.0,0.00015352,2]
[334368192,1722997347556,154.8621822,0.00015954,2]
[334368195,1722997385855,209.88574515,0.00015954,2]
[334368196,1722997390463,342.07838654,0.00015954,2]
[334368199,1722997410371,188.24924053,0.00015954,2]
[334368200,1722997413010,181.37332609,0.00015954,2]
[334368201,1722997414099,164.45582687,0.00015954,2]
[334368203,1722997421214,154.96871209,0.00015954,2]
[334368206,1722997438206,664.2961566,0.00015954,2]
[334368209,1722997490974,184.0441363,0.00015954,2]
[334368210,1722997509769,189.82369411,0.00015954,2]
[334368211,1722997517674,189.82369411,0.00015954,2]
[334368214,1722997553450,533.96699452,0.00015954,2]
[334368216,1722997585285,203.74084605,0.00015936,2]
[334368217,1722997611760,3000.0,0.00015603,2]
[334368219,1722997619012,156.65600018,0.00015954,2]
[334368220,1722997628516,159.507669,0.00014247,2]
[334368221,1722997630187,317.7797838,0.00015547,2]
[334368224,1722997641181,437.78644205,0.00015936,2]
[334368225,1722997643493,2110.7626581,0.00015936,2]
[334368226,1722997658779,1289.29201724,0.00015936,2]
[334368227,1722997660499,9055.45103852,0.00015936,2]
[334368228,1722997660531,924.41062667,0.00015936,2]
[334368231,1722997668797,422.483729,0.00015545,2]
[334368232,1722997674655,13856.6508688,0.0001567,2]
[334368233,1722997682595,190.83449793,0.00015954,2]
[334368235,1722997693073,273.37336231,9.9e-05,2]
[334368237,1722997700768,1348.25697795,0.00015599,2]
[334368238,1722997701906,273.37336231,9.9e-05,2]
[334368239,1722997702496,303.74,0.00010959,2]
[334368240,1722997709884,257.58917407,9.9e-05,2]
[334368241,1722997713303,317.8,0.00010959,2]
[334368242,1722997723828,264.83,0.00010959,2]
[334368245,1722997724750,154.76012181,0.00013283,2]
[334368260,1722997734343,220.69,0.00010959,2]
[334368261,1722997745130,183.91,0.00010959,2]
[334368262,1722997748637,-6786.20663618,0.00015,2]
[334368263,1722997748659,-334.9835458,0.00015534,2]
[334368264,1722997748681,-300.0,0.00015598,2]
[334368265,1722997748704,-300.0,0.00015598,2]
[334368266,1722997748727,-2751.70203965,0.00015599,2]
[334368267,1722997748751,-250.0,0.00016036,2]
[334368268,1722997748774,-250.0,0.00016078,2]
[334368269,1722997748797,-250.0,0.00016121,2]
[334368270,1722997748821,-250.0,0.00016163,2]
[334368271,1722997748848,-442.37386368,0.00016173,2]
[334368272,1722997748871,-250.0,0.00016205,2]
[334368273,1722997748897,-1198.2062797,0.00016273,2]
[334368274,1722997748920,-420.0,0.0001706,2]
[334368275,1722997748943,-420.0,0.00017157,2]
[334368276,1722997753782,250.0,0.00017115,2]
[334368277,1722997754006,250.0,0.00017161,2]
[334368278,1722997754258,250.0,0.00017208,2]
[334368279,1722997755645,153.26,0.00010959,2]
[334368282,1722997763834,4110.44330417,0.00017155,2]
[334368283,1722997765565,744.59992376,0.00010959,2]
[334368284,1722997766119,766.31,0.00010959,2]
[334368285,1722997770409,-250.0,0.00017255,2]
[334368286,1722997770432,-250.0,0.00017302,2]
[334368287,1722997770455,-250.0,0.00017349,2]
[334368288,1722997770478,-250.0,0.00017396,2]
[334368289,1722997770501,-250.0,0.00017443,2]
[334368290,1722997770524,-250.0,0.0001749,2]
[334368291,1722997770547,-250.0,0.00017537,2]
[334368292,1722997770570,-250.0,0.00017584,2]
[334368293,1722997770592,-500.0,0.00017628,2]
[334368294,1722997770614,-524.38368355,0.00017628,2]
[334368295,1722997770636,-571.4221756,0.00017628,2]
[334368296,1722997770659,-500.0,0.00017628,2]
[334368297,1722997770681,-500.0,0.00017628,2]
[334368298,1722997770702,-500.0,0.00017628,2]
[334368299,1722997770725,-299.74495885,0.00017628,2]
[334368303,1722997802046,2887.99830292,0.00016921,2]
[334368304,1722997826390,1162.86940617,0.00013283,2]
[334368305,1722997830276,155.13131422,0.00013283,2]
[334368306,1722997830431,2237.23062608,0.00013283,2]
[334368364,1722997833503,-1628.1995202,0.00016921,2]
[334368367,1722997833516,-658.81734428,0.00016921,2]
[334368431,1722997839202,-19724.9848326,0.00016921,2]
[334368432,1722997839213,-169.37596484,0.00017627,2]
[334368433,1722997839224,-174.60246396,0.00017627,2]
[334368434,1722997839235,-500.0,0.00017627,2]
[334368435,1722997839245,-500.0,0.00017627,2]
[334368436,1722997839256,-500.0,0.00017627,2]
[334368437,1722997839265,-500.0,0.00017627,2]
[334368438,1722997839276,-500.0,0.00017627,2]
[334368439,1722997839287,-500.0,0.00017627,2]
[334368440,1722997839299,-500.0,0.00017627,2]
[334368441,1722997839310,-500.0,0.00017627,2]
[334368442,1722997839321,-500.0,0.00017627,2]
[334368443,1722997839334,-500.0,0.00017627,2]
[334368444,1722997839344,-500.0,0.00017627,2]
[334368445,1722997839355,-500.0,0.00017627,2]
[334368446,1722997839364,-509.09597299,0.00017627,2]
[334368447,1722997839373,-500.0,0.00017627,2]
[334368448,1722997839383,-500.0,0.00017627,2]
[334368449,1722997839392,-500.0,0.00017627,2]
[334368450,1722997839405,-500.0,0.00017627,2]
[334368451,1722997839416,-500.0,0.00017627,2]
[334368452,1722997839427,-246.89494855,0.00017627,2]
[334368453,1722997839437,-500.0,0.00017627,2]
[334368454,1722997839447,-500.0,0.00017627,2]
[334368455,1722997839458,-500.0,0.00017627,2]
[334368456,1722997839467,-500.0,0.00017627,2]
[334368457,1722997839476,-500.0,0.00017627,2]
[334368458,1722997839487,-500.0,0.00017627,2]
[334368459,1722997839499,-500.0,0.00017627,2]
[334368460,1722997839510,-500.0,0.00017627,2]
[334368461,1722997839522,-500.0,0.00017627,2]
[334368462,1722997839531,-500.0,0.00017627,2]
[334368463,1722997839541,-500.0,0.00017627,2]
[334368464,1722997839551,-500.0,0.00017627,2]
[334368465,1722997839560,-500.0,0.00017627,2]
[334368466,1722997839570,-488.23189954,0.00017627,2]
[334368467,1722997839582,-500.0,0.00017627,2]
[334368468,1722997839592,-500.0,0.00017627,2]
[334368469,1722997839602,-500.0,0.00017627,2]
[334368470,1722997839611,-500.0,0.00017627,2]
[334368471,1722997839620,-500.0,0.00017627,2]
[334368472,1722997839630,-500.0,0.00017627,2]
[334368473,1722997839641,-500.0,0.00017627,2]
[334368474,1722997839653,-500.0,0.00017627,2]
[334368475,1722997839663,-500.0,0.00017627,2]
[334368476,1722997839672,-500.0,0.00017627,2]
[334368477,1722997839682,-236.58556199,0.00017627,2]
[334368478,1722997839693,-500.0,0.00017627,2]
[334368479,1722997839704,-500.0,0.00017627,2]
[334368480,1722997839714,-500.0,0.00017627,2]
[334368481,1722997839724,-500.0,0.00017627,2]
[334368482,1722997839735,-500.0,0.00017627,2]
[334368483,1722997839747,-300.0,0.00017627,2]
[334368484,1722997839757,-657.98471143,0.00017629,2]
[334368485,1722997839767,-17348.5588275,0.0001763,2]
[334368486,1722997839776,-250.0,0.00017631,2]
[334368487,1722997839786,-250.0,0.00017678,2]
[334368488,1722997839797,-250.0,0.00017725,2]
[334368489,1722997839807,-250.0,0.00017772,2]
[334368490,1722997839817,-250.0,0.00017818,2]
[334368491,1722997839831,-209.18351946,0.0001784,2]
[334368492,1722997839847,-250.0,0.00017865,2]
[334368493,1722997839859,-250.0,0.00017912,2]
[334368496,1722997839870,-250.0,0.00017959,2]
[334368497,1722997839880,-243.92771694,0.00018,2]
[334368498,1722997839891,-250.0,0.00018006,2]
[334368499,1722997839901,-150.112235,0.000181,2]
[334368500,1722997839911,-200.0,0.000183,2]
[334368501,1722997839920,-179.92758834,0.00018436,2]
[334368502,1722997839929,-386.95131361,0.00018436,2]
[334368503,1722997839941,-500.0,0.00018436,2]
[334368504,1722997839950,-500.0,0.00018436,2]
[334368505,1722997839959,-500.0,0.00018436,2]
[334368506,1722997839968,-301.70301082,0.00018436,2]
[334368507,1722997839977,-500.0,0.00018436,2]
[334368508,1722997839986,-500.0,0.00018436,2]
[334368509,1722997839995,-500.0,0.00018436,2]
[334368510,1722997840004,-504.79374098,0.00018436,2]
[334368511,1722997840014,-500.0,0.00018436,2]
[334368512,1722997840024,-500.0,0.00018436,2]
[334368513,1722997840034,-500.0,0.00018436,2]
[334368514,1722997840044,-47674.6720305,0.00018437,2]
[334368515,1722997840053,-3229.96764663,0.00018447,2]
[334368516,1722997840062,-42354.45522892,0.00018999,2]
[334368517,1722997840072,-845.54644341,0.00019102,2]
[334368518,1722997840091,-694.3350876,0.00019147,2]
[334368521,1722997840100,-849.39914621,0.00019147,2]
[334368524,1722997840109,-810.21732199,0.00019147,2]
[334368526,1722997840119,-727.75567093,0.00019147,2]
[334368528,1722997840129,-250.41008067,0.00019153,2]
[334368530,1722997840138,-277.26634811,0.00019153,2]
[334368532,1722997840148,-191.83043346,0.00019153,2]
[334368534,1722997840157,-160.61690589,0.00019153,2]
[334368536,1722997840166,-154.86424979,0.00019153,2]
[334368538,1722997840175,-165.59010032,0.00019153,2]
[334368540,1722997840184,-154.85330886,0.00019153,2]
[334368542,1722997840193,-5236.61359711,0.00019154,2]
[334368544,1722997840202,-534.08924875,0.00019155,2]
[334368546,1722997840211,-413.91232311,0.00019155,2]
[334368548,1722997840222,-1109.20863131,0.00019155,2]
[334368550,1722997840232,-816.49953557,0.00019155,2]
[334368552,1722997840242,-292.43342898,0.00019155,2]
[334368554,1722997840252,-204.25231923,0.00019155,2]
[334368556,1722997840261,-2277.87309117,0.00019155,3]
[334368557,1722997840270,-154.66746495,0.00019155,2]
[334368558,1722997840282,-532.35842736,0.00019155,2]
[334368559,1722997840293,-1648.94552074,0.00019155,2]
[334368560,1722997840303,-319.82518847,0.00019155,2]
[334368561,1722997840315,-154.66746495,0.00019155,2]
[334368562,1722997840332,-336.30256165,0.00019155,2]
[334368563,1722997840342,-156.78691505,0.00019155,2]
[334368564,1722997840352,-188.2181997,0.00019155,2]
[334368565,1722997840363,-221.2021834,0.00019155,2]
[334368567,1722997840375,-403.86895423,0.00019155,2]
[334368569,1722997840385,-413.06352024,0.00019155,2]
[334368570,1722997840400,-306.25510506,0.00019155,2]
[334368572,1722997840411,-205.1880395,0.00019155,2]
[334368574,1722997840422,-154.66746495,0.00019155,2]
[334368576,1722997840432,-522.39318645,0.00019155,2]
[334368577,1722997840442,-1091.57771247,0.00019155,2]
[334368579,1722997840454,-159.24043179,0.00019155,2]
[334368581,1722997840464,-154.77557542,0.00019155,2]
[334368583,1722997840474,-309.1495329,0.00019155,2]
[334368584,1722997840484,-160.19468673,0.00019155,2]
[334368585,1722997840494,-250.68955886,0.00019155,2]
[334368586,1722997840505,-187.39781204,0.00019155,2]
[334368587,1722997840515,-2849.31423163,0.00019155,2]
[334368588,1722997840527,-157.0126192,0.00019155,2]
[334368589,1722997840537,-342.05014288,0.00019155,2]
[334368590,1722997840547,-1768.01961959,0.00019155,2]
[334368591,1722997840557,-154.66746495,0.00019155,2]
[334368592,1722997840569,-301.05042954,0.00019155,2]
[334368593,1722997840585,-162.41936117,0.00019155,2]
[334368594,1722997840597,-47674.6720305,0.00019167,2]
[334368595,1722997840607,-5236.61359711,0.00019167,2]
[334368596,1722997840618,-180.53401892,0.00019167,2]
[334368597,1722997840629,-20273.10071534,0.00019167,2]
[334368598,1722997840640,-244.92127532,0.00019167,2]
[334368599,1722997840649,-189.82369411,0.00019167,2]
[334368600,1722997840659,-160.42676853,0.00019167,2]
[334368601,1722997840669,-154.66746495,0.00019167,2]
[334368602,1722997840679,-206.30317708,0.00019167,2]
[334368603,1722997840691,-1500.0,0.00019167,2]
[334368604,1722997840701,-1654.19632821,0.00019167,2]
[334368605,1722997840711,-244.92127532,0.00019167,2]
[334368606,1722997840720,-156.65600018,0.00019167,2]
[334368607,1722997840730,-307.82692526,0.00019167,2]
[334368608,1722997840740,-240.80307792,0.00019167,2]
[334368609,1722997840750,-180.53401892,0.00019167,2]
[334368610,1722997840760,-231.27068883,0.00019167,2]
[334368611,1722997840769,-209.90726283,0.00019167,2]
[334368612,1722997840780,-277.75283799,0.00019167,2]
[334368613,1722997840789,-506.48190828,0.00019167,2]
[334368614,1722997840799,-196.46943428,0.00019167,2]
[334368615,1722997840808,-201.53660926,0.00019167,2]
[334368616,1722997840818,-216.38317059,0.00019167,2]
[334368617,1722997840833,-2131.60006428,0.00019167,2]
[334368618,1722997840843,-154.66746495,0.00019177,2]
[334368619,1722997840852,-183.14226192,0.00019177,2]
[334368620,1722997840863,-287.77266661,0.00019177,2]
[334368621,1722997840874,-154.94522625,0.00019177,2]